bitfinex-derivatives/quotes_ETHF0:USTF0_20251003
["timestamp","ask_amount","ask_price","bid_price","bid_amount"]
[1759489818492,0.7388,4480.3,4480.2,0.00192347]
[1759489818698,0.7388,4480.3,4480.2,0.22692347]
[1759489819298,0.7388,4480.3,4480.2,0.00192347]
[1759489819501,0.7388,4480.3,4480.2,0.22692347]
[1759489819702,0.7388,4479.7,4479.6,0.5335]
[1759489820000,0.7388,4479.7,4479.6,0.9782]
[1759489820197,3.2078,4479.9,4478.7,1.00404]
[1759489820198,0.221,4478.9,4478.8,0.7532]
[1759489820400,0.7388,4479.4,4479.3,0.7532]
[1759489820601,0.74136903,4479.4,4479.3,0.98106797]
[1759489821102,0.74136903,4479.4,4479.3,0.43656797]
[1759489821907,3.94916903,4479.4,4479.3,0.22786797]
[1759489822608,3.94916903,4479.4,4479.3,0.21156797]
[1759489823106,3.94916903,4479.4,4479.3,0.76136797]
[1759489823403,3.94916903,4479.4,4479.3,0.98106797]
[1759489823605,3.43136903,4479.4,4479.3,0.75606797]
[1759489823796,3.43136903,4479.4,4479.3,0.98106797]
[1759489823998,3.43136903,4479.4,4479.3,0.75606797]
[1759489824207,3.73876903,4479.4,4479.3,0.75606797]
[1759489824407,3.94916903,4479.4,4479.3,0.98106797]
[1759489825204,3.94916903,4479.4,4479.3,0.00286797]
[1759489825610,0.7388,4478.7,4478.6,0.2087]
[1759489825804,0.3074,4478.6,4478.5,0.40163]
[1759489826007,0.7388,4478.6,4478.5,0.61033]
[1759489826309,0.7388,4478.6,4478.5,0.4337]
[1759489826607,0.7388,4478.6,4478.5,0.43616168]
[1759489826808,0.7388,4478.6,4478.5,0.21116168]
[1759489827106,0.7388,4478.6,4478.5,0.43616168]
[1759489827303,0.7388,4478.6,4478.5,0.22746168]
[1759489827904,0.7388,4478.6,4478.5,0.00246168]
[1759489828110,0.7388,4478.6,4478.5,0.22746168]
[1759489828507,0.521,4478.0,4477.9,0.02233215]
[1759489828705,0.7319,4478.0,4477.9,0.67033215]
[1759489829209,0.7319,4478.0,4477.9,0.97473215]
[1759489829611,0.7319,4478.0,4477.9,0.97757425]
[1759489829808,0.7319,4478.0,4477.9,0.75257425]
[1759489830010,0.7319,4478.0,4477.9,0.97857425]
[1759489831815,0.866,4478.0,4477.9,0.97857425]
[1759489833114,0.866,4478.0,4477.9,0.02517425]
[1759489833517,0.866,4478.0,4477.9,0.19517425]
[1759489833812,0.866,4478.0,4477.9,0.02517425]
[1759489840119,0.866,4478.0,4477.9,0.79177425]
[1759489840420,0.7319,4478.0,4477.9,0.79177425]
[1759489841217,0.7319,4478.0,4477.9,1.19346425]
[1759489843016,1.13358,4478.0,4477.9,1.19346425]
[1759489843715,0.7319,4478.0,4477.9,1.19346425]
[1759489844313,1.13358,4478.0,4477.9,1.19346425]
[1759489844520,0.7319,4478.0,4477.9,1.19346425]
[1759489844711,0.521,4478.0,4477.9,1.19346425]
[1759489844915,0.521,4478.0,4477.9,1.41846425]
[1759489845621,3.2301,4478.2,4478.1,1.16827]
[1759489845923,3.7625,4478.2,4478.1,1.16827]
[1759489846619,3.2078,4478.2,4478.1,1.16827]
[1759489847722,0.95632,4478.6,4478.5,0.7666]
[1759489847921,0.95632,4478.6,4478.5,0.9916]
[1759489848515,3.2078,4478.9,4478.5,0.9916]
[1759489848516,3.5417,4478.9,4478.5,1.1175]
[1759489848722,4.1641,4478.9,4478.8,1.16821]
[1759489849124,4.3723,4478.9,4478.8,0.7666]
[1759489849323,4.3723,4478.9,4478.8,0.9926]
[1759489850326,4.3723,4478.9,4478.8,1.39421]
[1759489850625,4.3723,4478.9,4478.8,0.9926]
[1759489850826,4.3723,4478.9,4478.8,1.39421]
[1759489853025,3.9707,4478.9,4478.8,1.39421]
[1759489854329,4.3723,4478.9,4478.8,1.39421]
[1759489854724,4.3723,4478.9,4478.8,0.9926]
[1759489855520,4.3723,4478.9,4478.8,1.39421]
[1759489855924,4.3723,4478.9,4478.8,1.16821]
[1759489856126,4.3723,4478.9,4478.8,1.39321]
[1759489856324,4.3723,4478.9,4478.8,1.16821]
[1759489856522,3.9707,4478.9,4478.0,38.1697]
[1759489856831,0.5303,4478.2,4478.1,1.37447]
[1759489857133,0.2145,4478.5,4478.4,1.14944]
[1759489857733,0.5303,4478.5,4478.4,1.14944]
[1759489858522,3.6445,4478.9,4478.4,0.5386]
[1759489858723,3.6445,4478.9,4478.8,0.7478]
[1759489859228,4.3619,4478.9,4478.8,0.7478]
[1759489859430,4.3619,4478.9,4478.8,0.2092]
[1759489859625,1.15412,4478.6,4478.5,1.37443]
[1759489859820,1.15412,4478.6,4478.5,1.14943]
[1759489860025,1.15412,4478.6,4478.5,1.37443]
[1759489860225,1.15412,4478.6,4478.5,0.9728]
[1759489860625,1.15412,4478.6,4478.5,1.37443]
[1759489861333,1.15412,4478.6,4478.5,0.9728]
[1759489861627,1.15412,4478.6,4478.5,1.37443]
[1759489861823,0.7525,4478.6,4478.5,1.37443]
[1759489862023,1.15412,4478.6,4478.5,1.37443]
[1759489862229,1.15412,4478.6,4478.5,1.14943]
[1759489862430,1.15412,4478.6,4478.5,1.37443]
[1759489863829,1.15412,4478.6,4478.5,1.14943]
[1759489864029,1.15412,4478.6,4478.5,1.37443]
[1759489864926,1.15412,4478.6,4478.5,0.9728]
[1759489865131,1.15412,4478.6,4478.5,1.37443]
[1759489868436,1.15412,4478.6,4478.5,1.14943]
[1759489868736,1.15412,4478.6,4478.5,1.37443]
[1759489869435,1.15412,4478.6,4478.5,1.14943]
[1759489869638,1.15412,4478.6,4478.5,1.37443]
[1759489869941,0.4265,4478.4,4478.0,36.03410174]
[1759489870236,1.14296,4478.2,4478.1,0.225]
[1759489871225,1.14296,4478.2,4478.1,0.7622]
[1759489871529,1.14296,4478.2,4478.1,0.9829]
[1759489872035,1.14296,4478.2,4478.1,0.7579]
[1759489872337,1.14296,4478.2,4478.1,0.9829]
[1759489872928,3.2078,4478.3,4478.0,36.03410174]
[1759489872929,0.71647,4478.1,4478.0,36.03410174]
[1759489873129,0.71647,4478.1,4478.0,36.25910174]
[1759489873437,0.71647,4478.1,4478.0,36.03410174]
[1759489873634,0.71647,4478.1,4478.0,36.25910174]
[1759489874438,0.71647,4478.1,4478.0,34.836]
[1759489874630,0.71647,4478.1,4478.0,35.061]
[1759489875228,0.71647,4478.1,4478.0,36.25910174]
[1759489875537,0.71647,4478.1,4478.0,36.03410174]
[1759489876039,0.3148,4478.1,4478.0,36.58420174]
[1759489876738,0.71647,4478.1,4478.0,36.58420174]
[1759489879442,0.71647,4478.1,4478.0,36.35920174]
[1759489879642,0.71647,4478.1,4478.0,36.58420174]
[1759489879942,0.71647,4478.1,4478.0,35.3861]
[1759489880342,0.71647,4478.1,4478.0,35.1611]
[1759489880542,0.71647,4478.1,4478.0,35.3861]
[1759489880937,0.3148,4478.1,4478.0,35.3861]
[1759489881947,0.3148,4478.1,4478.0,35.1611]
[1759489882145,0.3148,4478.1,4478.0,35.3861]
[1759489882746,0.3148,4478.1,4478.0,0.8856]
[1759489883045,0.5222,4478.1,4478.0,1.1106]
[1759489883840,0.5222,4478.1,4478.0,2.30870174]
[1759489884249,0.92387,4478.1,4478.0,2.30870174]
[1759489885451,0.92387,4478.1,4478.0,2.71038174]
[1759489886843,1.14297,4478.1,4478.0,1.40960174]
[1759489887050,1.14297,4478.1,4478.0,2.16490174]
[1759489889853,1.14297,4478.1,4478.0,2.56658174]
[1759489891853,1.14297,4478.1,4478.0,2.34158174]
[1759489892152,1.14297,4478.1,4478.0,2.56658174]
[1759489893152,1.14297,4478.1,4478.0,2.34158174]
[1759489893352,1.14297,4478.1,4478.0,2.56658174]
[1759489893553,3.5622,4478.3,4478.0,1.96690174]
[1759489893752,3.63175,4478.3,4478.2,1.16016]
[1759489893950,3.63175,4478.3,4478.2,1.38516]
[1759489894148,3.2301,4478.3,4478.2,2.58326174]
[1759489894552,3.2301,4478.3,4478.2,2.18160174]
[1759489894853,3.2301,4478.3,4478.2,2.58326174]
[1759489895354,3.63175,4478.3,4478.2,2.58326174]
[1759489895553,3.2301,4478.3,4478.2,2.58326174]
[1759489895755,3.2078,4478.3,4478.2,1.38516]
[1759489896154,3.60945,4478.3,4478.2,1.38516]
[1759489896354,3.94155,4478.3,4478.2,1.38516]
[1759489897054,3.60945,4478.3,4478.2,1.38516]
[1759489897455,3.2078,4478.3,4478.2,1.38516]
[1759489898259,3.60945,4478.3,4478.2,1.38516]
[1759489898555,3.2078,4478.3,4478.2,1.38516]
[1759489899752,0.0223,4478.5,4478.4,0.40164]
[1759489900058,0.0223,4478.5,4478.4,1.38514]
[1759489902660,0.40163,4478.6,4478.5,1.28863]
[1759489902861,0.73373,4478.6,4478.5,2.49309793]
[1759489903054,0.40163,4478.6,4478.5,2.49309793]
[1759489904456,3.4157,4478.8,4478.7,0.4381]
[1759489904658,3.7478,4478.8,4478.7,0.9835]
[1759489905165,3.7478,4478.8,4478.7,0.7585]
[1759489905356,3.7478,4478.8,4478.7,0.9835]
[1759489905666,3.7478,4478.8,4478.7,0.7585]
[1759489905964,3.7478,4478.8,4478.7,0.9835]
[1759489906266,4.14941,4478.8,4478.7,0.9835]
[1759489906867,4.14941,4478.8,4478.7,1.38512]
[1759489909566,4.36281,4478.8,4478.7,1.38512]
[1759489910067,4.36281,4478.8,4478.7,0.9835]
[1759489910268,0.3321,4478.8,4478.7,0.9835]
[1759489910472,0.0223,4479.0,4478.9,1.16006]
[1759489910862,0.40407903,4479.4,4479.1,0.7594]
[1759489910863,0.5539,4479.2,4479.1,0.7594]
[1759489911062,0.5539,4479.2,4479.1,0.9844]
[1759489911258,0.5539,4479.2,4479.1,2.58921748]
[1759489911463,0.5539,4479.2,4479.1,1.38594]
[1759489912066,0.3328,4479.3,4479.2,0.40152]
[1759489912266,0.3328,4479.3,4479.2,0.83742]
[1759489912665,0.3328,4479.3,4479.2,1.16092]
[1759489912865,0.5539,4479.3,4479.2,0.7594]
[1759489913068,0.5539,4479.3,4479.2,0.9844]
[1759489913271,0.5539,4479.3,4479.2,2.18675549]
[1759489913565,0.5539,4479.3,4479.2,2.58829549]
[1759489913870,0.5539,4479.3,4479.2,1.38594]
[1759489914364,0.5539,4479.3,4479.2,2.58792757]
[1759489914859,0.33536903,4479.4,4479.3,0.83743]
[1759489915062,0.33536903,4479.4,4479.3,1.16093]
[1759489915272,0.00256903,4479.4,4479.3,1.16093]
[1759489915865,0.55646903,4479.4,4479.3,1.16093]
[1759489916264,0.00256903,4479.4,4479.3,2.36291757]
[1759489916469,0.00256903,4479.4,4479.3,1.16093]
[1759489917370,0.00256903,4479.4,4479.3,2.36207123]
[1759489918567,0.00256903,4479.4,4479.3,1.16093]
[1759489919873,0.00256903,4479.4,4479.3,6.16093]
[1759489920874,0.00256903,4479.4,4479.3,46.96093]
[1759489922173,0.31566903,4479.4,4479.3,41.96093]
[1759489922380,0.73166903,4479.4,4479.3,0.9844]
[1759489922580,0.73166903,4479.4,4479.3,1.06243]
[1759489923380,0.73166903,4479.4,4479.3,0.83743]
[1759489923677,0.73166903,4479.4,4479.3,1.06243]
[1759489924180,0.73166903,4479.4,4479.3,0.4359]
[1759489924381,0.73166903,4479.4,4479.3,1.06243]
[1759489925277,0.73166903,4479.4,4479.3,2.58995721]
[1759489925478,0.73166903,4479.4,4479.3,1.38983]
[1759489925677,0.73166903,4479.4,4479.3,2.58995721]
[1759489926177,0.73166903,4479.4,4479.3,1.82045721]
[1759489926383,0.73166903,4479.4,4479.1,1.20012721]
[1759489926384,0.3131,4479.3,4479.1,1.20012721]
[1759489926578,0.7291,4479.3,4479.2,0.225]
[1759489926784,0.416,4479.2,4479.0,1.20012721]
[1759489927084,0.3131,4478.8,4478.6,1.20012721]
[1759489927283,0.7291,4478.8,4478.7,0.225]
[1759489928177,0.4016,4478.6,4478.5,3.2078]
[1759489928385,0.416,4478.6,4478.5,3.4328]
[1759489928679,0.7291,4478.6,4478.5,3.6425]
[1759489928879,0.7291,4478.6,4478.5,3.9699]
[1759489929082,0.7291,4478.6,4478.5,4.1836]
[1759489929382,0.5268,4478.6,4478.5,4.3107]
[1759489930085,0.7291,4478.6,4478.5,4.1836]
[1759489931377,0.7291,4478.6,4478.5,3.2078]
[1759489931583,0.7291,4478.6,4478.5,3.9699]
[1759489931881,0.7291,4478.6,4478.5,4.1836]
[1759489932384,0.7291,4478.6,4478.5,4.5852]
[1759489932582,0.53337,4479.0,4478.8,0.40158]
[1759489932780,0.92837,4478.9,4478.8,0.4234]
[1759489932981,1.13067,4478.9,4478.8,0.9758]
[1759489935381,1.13067,4478.9,4478.8,0.4234]
[1759489935575,1.13067,4478.9,4478.8,0.4347]
[1759489936885,1.13067,4478.9,4478.8,0.225]
[1759489937086,1.13067,4478.9,4478.8,0.83628]
[1759489937286,0.7291,4478.9,4478.8,1.15238]
[1759489937488,0.3354,4479.1,4479.0,0.82496]
[1759489937693,0.0223,4479.1,4479.0,1.50446]
[1759489937883,0.00256903,4479.4,4479.3,0.82493]
[1759489938086,0.00256903,4479.4,4479.3,1.37733]
[1759489939192,0.00256903,4479.4,4479.3,2.57745721]
[1759489940094,0.00256903,4479.4,4479.3,1.37733]
[1759489943297,0.00256903,4479.4,4479.3,6.37733]
[1759489944397,0.00256903,4479.4,4479.3,82.00333]
[1759489950505,0.00256903,4479.4,4479.3,46.95233]
[1759489950806,0.00256903,4479.4,4479.3,82.00133]
[1759489951811,0.00256903,4479.4,4479.3,46.95233]
[1759489952108,0.00256903,4479.4,4479.3,82.00033]
[1759489955121,0.00256903,4479.4,4479.3,77.00033]
[1759489956323,0.00256903,4479.4,4479.3,82.00033]
[1759489956520,0.00256903,4479.4,4479.3,83.59801293]
[1759489957521,0.00256903,4479.4,4479.3,82.00033]
[1759489962426,0.00256903,4479.4,4479.3,77.00033]
[1759489963021,0.00256903,4479.4,4479.3,41.95233]
[1759489963223,0.3173,4479.3,4479.1,38.0278]
[1759489963524,0.7421,4479.3,4479.2,0.62654]
[1759489964720,0.7421,4479.3,4479.2,0.84384]
[1759489965525,0.7421,4479.3,4479.2,0.61884]
[1759489965724,0.7421,4479.3,4479.2,0.62654]
[1759489966124,5.7421,4479.3,4479.2,0.40154]
[1759489966324,5.7421,4479.3,4479.2,0.62654]
[1759489966726,5.7421,4479.3,4479.2,0.40154]
[1759489967026,5.7421,4479.3,4479.2,0.62654]
[1759489968930,0.7421,4479.3,4479.2,1.39234]
[1759489969126,0.7421,4479.3,4479.2,1.16734]
[1759489969428,0.7421,4479.3,4479.2,0.225]
[1759489970031,0.7421,4479.3,4479.2,0.95274]
[1759489970228,0.7421,4479.3,4479.2,0.84384]
[1759489972136,0.7421,4479.3,4479.2,1.17654]
[1759489975727,0.7421,4479.3,4479.2,1.38504]
[1759489979740,0.7421,4479.3,4479.2,1.38404]
[1759489980640,0.5322,4479.3,4479.2,1.38404]
[1759489983241,0.5322,4479.3,4479.2,1.16004]
[1759489983541,0.5322,4479.3,4479.2,1.38404]
[1759489989143,0.00256903,4479.4,4479.3,0.92173]
[1759489989340,0.00256903,4479.4,4479.3,36.17533]
[1759489989543,0.30506903,4479.4,4479.3,36.17533]
[1759489989843,0.00256903,4479.4,4479.3,36.17533]
[1759489990841,0.00256903,4479.4,4479.3,76.97533]
[1759489992349,0.00256903,4479.4,4479.3,43.52501293]
[1759489992547,0.00256903,4479.4,4479.3,78.57201293]
[1759489992746,0.00256903,4479.4,4479.3,76.97433]
[1759489993044,0.74366903,4479.4,4479.3,0.2018]
[1759489993253,0.74366903,4479.4,4479.3,0.224]
[1759489993442,0.3025,4479.3,4479.1,4.80548293]
[1759489993641,0.7411,4479.2,4479.1,3.2078]
[1759489994040,0.7411,4479.2,4479.1,3.4318]
[1759489994346,5.7411,4479.2,4479.1,3.2078]
[1759489994542,5.7411,4479.2,4479.1,4.63649607]
[1759489995145,5.7411,4479.2,4479.1,1.42869607]
[1759489995341,5.7411,4479.2,4479.1,0.224]
[1759489996237,6.14264,4479.2,4479.1,0.224]
[1759489997541,6.14264,4479.2,4479.1,0.7442]
[1759489997542,5.7411,4479.2,4479.1,0.7442]
[1759489997850,0.7411,4479.2,4479.1,2.15449607]
[1759489998341,0.7411,4479.2,4479.1,0.9508]
[1759489998539,0.7411,4479.2,4479.1,0.4268]
[1759489998742,0.7411,4479.2,4479.1,0.225]
[1759490000440,0.5259,4479.2,4478.9,1.60626607]
[1759490000645,1.26926,4479.0,4478.9,1.60626607]
[1759490000844,1.26926,4479.0,4478.9,1.83126607]
[1759490001147,1.26926,4479.0,4478.9,1.42969607]
[1759490001446,1.26926,4479.0,4478.9,0.225]
[1759490001948,0.7411,4479.0,4478.9,2.55706607]
[1759490002144,0.8677,4479.0,4478.9,2.55706607]
[1759490002344,0.8677,4479.0,4478.9,1.35237]
[1759490002547,1.26926,4479.0,4478.9,1.35237]
[1759490002751,0.7411,4478.9,4478.8,1.20469607]
[1759490002946,0.7411,4478.9,4478.8,1.42969607]
[1759490003447,0.7411,4478.9,4478.8,1.63149607]
[1759490004252,0.7411,4478.9,4478.8,0.7452]
[1759490004849,0.40158,4478.8,4478.7,1.20469607]
[1759490005154,1.14268,4478.8,4478.7,1.94989607]
[1759490005948,0.5177,4478.8,4478.7,2.15549607]
[1759490006257,1.16226,4479.0,4478.9,0.7342]
[1759490007353,1.16226,4479.0,4478.9,0.9592]
[1759490008457,1.28396,4479.0,4478.9,0.9592]
[1759490009949,1.28396,4479.0,4478.9,0.2235]
[1759490010154,1.16229,4478.6,4478.5,0.2235]
[1759490010352,1.16229,4478.6,4478.5,0.225]
[1759490011255,0.40161,4478.4,4478.3,1.20294674]
[1759490011458,1.16231,4478.4,4478.3,1.42794674]
[1759490011757,0.1217,4478.5,4478.2,0.7342]
[1759490011758,0.7607,4478.3,4478.2,0.7342]
[1759490011957,0.7607,4478.3,4478.2,0.9592]
[1759490012349,1.16232,4478.3,4478.2,0.9592]
[1759490013164,1.16232,4478.3,4478.2,0.6502]
[1759490013455,0.8698,4478.0,4477.9,0.02517425]
[1759490013653,0.8698,4478.0,4477.9,0.25017425]
[1759490013855,5.8698,4478.0,4477.9,0.25017425]
[1759490016059,5.8698,4478.0,4477.9,0.02517425]
[1759490016257,5.8698,4478.0,4477.9,0.25017425]
[1759490016258,6.33585704,4478.0,4477.9,0.25017425]
[1759490016561,5.8698,4478.0,4477.9,0.02517425]
[1759490016760,0.7366,4476.7,4476.6,1.73824674]
[1759490017059,0.7366,4476.7,4476.6,0.2086]
[1759490017264,0.40176,4476.8,4476.3,4.81253674]
[1759490017265,0.4269,4476.4,4476.3,4.14489]
[1759490017564,0.7366,4476.4,4476.3,4.58929]
[1759490017756,0.7366,4476.4,4476.3,4.59169349]
[1759490018263,0.7366,4476.4,4476.3,5.16483529]
[1759490018461,0.7366,4476.4,4476.3,5.38983529]
[1759490019766,0.7366,4476.4,4476.3,4.18990349]
[1759490021368,0.7366,4476.4,4476.3,3.96490349]
[1759490021663,0.7366,4476.4,4476.3,4.18990349]
[1759490022064,0.7366,4476.4,4476.3,3.96490349]
[1759490022266,0.7366,4476.4,4476.3,4.18990349]
[1759490023466,0.7366,4476.4,4476.3,3.96490349]
[1759490023667,0.7366,4476.4,4476.3,4.18990349]
[1759490024366,0.7366,4476.4,4476.3,0.43040349]
[1759490024567,0.7366,4476.4,4476.3,0.43600349]
[1759490024765,0.7366,4476.4,4476.3,0.21100349]
[1759490024965,0.7366,4476.4,4476.3,0.43600349]
[1759490025167,0.7366,4476.4,4476.3,0.76270349]
[1759490025568,0.7366,4476.4,4476.3,0.53770349]
[1759490025762,0.7366,4476.4,4476.3,0.43600349]
[1759490026069,0.5277,4476.4,4476.3,0.98210349]
[1759490026267,0.7366,4476.4,4476.3,0.00240349]
[1759490026470,0.7366,4476.4,4476.3,0.22740349]
[1759490027265,0.7366,4476.4,4476.3,0.00240349]
[1759490027666,0.7366,4476.4,4476.3,0.22740349]
[1759490028358,5.7366,4476.4,4476.3,0.22740349]
[1759490028667,5.7366,4476.4,4476.3,0.76270349]
[1759490028668,1.13839,4476.4,4476.3,0.76270349]
[1759490028969,1.13839,4476.4,4476.3,0.22740349]
[1759490029871,1.13839,4476.4,4476.3,0.00240349]
[1759490030074,6.13839,4476.4,4476.3,0.00240349]
[1759490030367,6.13839,4476.4,4476.3,0.22740349]
[1759490030368,1.13839,4476.4,4476.3,0.22740349]
[1759490030574,0.7366,4476.4,4476.3,0.97300349]
[1759490030771,1.13839,4476.4,4476.3,0.97300349]
[1759490031160,0.7366,4476.4,4476.3,1.37480349]
[1759490031365,1.13839,4476.4,4476.3,1.37480349]
[1759490032171,0.7366,4476.4,4476.3,1.37480349]
[1759490032365,0.5277,4476.4,4476.3,1.37480349]
[1759490032569,0.2269,4476.6,4476.5,1.27938]
[1759490032765,0.0223,4476.6,4476.5,1.27938]
[1759490033668,0.40173,4477.1,4476.5,0.563]
[1759490033874,0.7485,4477.2,4477.1,0.7538]
[1759490034073,0.7485,4477.2,4477.1,0.9788]
[1759490034774,0.7485,4477.2,4476.3,1.00689349]
[1759490034775,1.00438,4476.9,4476.4,3.2078]
[1759490034972,0.7485,4475.3,4475.0,0.40191]
[1759490035268,0.5248,4475.2,4475.1,0.6279]
[1759490035475,0.5248,4475.2,4475.1,0.226]
[1759490035869,0.52670118,4475.2,4475.1,0.22890343]
[1759490036073,0.32210118,4475.2,4475.1,0.22890343]
[1759490036373,0.32210118,4475.2,4475.1,5.00290343]
[1759490036572,0.32210118,4475.2,4475.1,5.22890343]
[1759490037078,0.32210118,4475.2,4475.1,5.00290343]
[1759490037373,0.00190118,4475.2,4475.1,5.22890343]
[1759490038374,0.32210118,4475.2,4475.1,5.22890343]
[1759490040270,0.32210118,4475.2,4475.1,6.42883523]
[1759490040471,0.00190118,4475.2,4475.1,5.22890343]
[1759490040780,0.0223,4475.4,4475.2,0.4019]
[1759490041282,0.0223,4475.4,4475.3,0.226]
[1759490041475,0.3202,4475.9,4475.8,0.40185]
[1759490041676,0.32218782,4475.9,4475.8,0.62785]
[1759490043377,0.32218782,4475.9,4475.8,1.82784972]
[1759490044374,0.32218782,4475.9,4475.8,0.62785]
[1759490044575,0.32218782,4475.9,4475.8,1.82980002]
[1759490044976,0.33078782,4475.9,4475.8,1.82980002]
[1759490045280,0.33078782,4475.9,4475.8,0.62785]
[1759490046376,0.33078782,4475.9,4475.8,0.40185]
[1759490046577,0.53668782,4475.9,4475.8,0.62785]
[1759490048984,0.53668782,4475.9,4475.8,0.40185]
[1759490049172,0.73898782,4475.9,4475.8,0.62785]
[1759490050878,0.73898782,4475.9,4475.8,0.40185]
[1759490051076,0.73898782,4475.9,4475.8,0.62785]
[1759490051680,0.53668782,4475.9,4475.8,0.62785]
[1759490055784,0.33078782,4475.9,4475.8,0.62785]
[1759490056377,0.33078782,4475.9,4475.8,2.22553293]
[1759490057083,0.53668782,4475.9,4475.8,2.22553293]
[1759490057481,0.53668782,4475.9,4475.8,0.40185]
[1759490057687,0.53668782,4475.9,4475.8,41.42685]
[1759490058886,0.33078782,4475.9,4475.8,41.42685]
[1759490059983,0.33078782,4475.9,4475.8,41.20185]
[1759490060487,0.33078782,4475.9,4475.8,76.27685]
[1759490062591,0.33078782,4475.9,4475.8,77.88205739]
[1759490063387,0.33078782,4475.9,4475.8,77.88105739]
[1759490063586,0.33078782,4475.9,4475.8,76.27585]
[1759490066097,0.33078782,4475.9,4475.8,41.20185]
[1759490066289,0.33078782,4475.9,4475.8,76.27585]
[1759490067500,0.00198782,4475.9,4475.8,78.25338105]
[1759490068397,0.00198782,4475.9,4475.8,76.27585]
[1759490069195,0.00198782,4475.9,4475.8,78.28366912]
[1759490069400,0.00198782,4475.9,4475.8,76.27585]
[1759490070202,0.00198782,4475.9,4475.8,78.28383454]
[1759490070596,0.00198782,4475.9,4475.8,76.27585]
[1759490073700,0.00198782,4475.9,4475.8,81.27585]
[1759490074505,0.00198782,4475.9,4475.8,81.27385]
[1759490076906,0.33378782,4475.9,4475.8,81.27385]
[1759490078708,0.33378782,4475.9,4475.8,46.20185]
[1759490078907,0.33378782,4475.9,4475.8,81.27285]
[1759490082309,0.33378782,4475.9,4475.8,76.27285]
[1759490083508,0.33378782,4475.9,4475.8,41.20185]
[1759490083709,0.33378782,4475.9,4475.8,76.27185]
[1759490084303,0.33378782,4475.9,4475.8,79.47965]
[1759490085804,0.00198782,4475.9,4475.8,79.47965]
[1759490086309,0.00198782,4475.9,4475.8,83.18665]
[1759490086500,0.00198782,4475.9,4475.8,84.47965]
[1759490086707,0.33378782,4475.9,4475.8,84.47965]
[1759490087008,0.3315,4477.0,4476.9,0.40175]
[1759490087203,0.552,4477.0,4476.9,1.04145]
[1759490087803,0.552,4477.0,4476.9,42.02052095]
[1759490088007,0.55361055,4477.0,4476.9,42.02052095]
[1759490088904,0.88541055,4477.0,4476.9,42.02052095]
[1759490089614,0.66491055,4477.0,4476.9,42.16872095]
[1759490090111,0.66491055,4477.0,4476.9,76.86452095]
[1759490092107,0.66491055,4477.0,4476.9,41.79552095]
[1759490092318,9.48235055,4477.0,4476.9,1.60393145]
[1759490092511,9.48235055,4477.0,4476.9,0.225]
[1759490092512,9.15055055,4477.0,4476.9,0.225]
[1759490092809,9.15055055,4477.0,4476.7,0.40176]
[1759490093019,4.15055055,4477.0,4476.8,0.225]
[1759490093315,0.7581,4476.9,4476.8,0.225]
[1759490093517,5.4245,4476.9,4476.8,0.225]
[1759490093712,0.4245,4476.7,4476.6,1.60393145]
[1759490093916,0.7581,4476.7,4476.6,1.82893145]
[1759490094217,0.7581,4476.7,4476.6,2.23070145]
[1759490095314,0.7581,4476.7,4476.6,0.62677]
[1759490096314,0.7581,4476.7,4476.6,0.84847]
[1759490097612,0.7581,4476.7,4476.6,2.45373489]
[1759490098216,0.5502,4476.7,4476.6,2.80453489]
[1759490098414,0.5502,4476.7,4476.6,1.19927]
[1759490099417,0.3336,4476.7,4476.6,1.19927]
[1759490099619,0.7581,4476.7,4476.6,35.89367]
[1759490100723,0.7581,4476.7,4476.6,35.69147]
[1759490101223,0.7581,4476.7,4476.6,37.29696459]
[1759490101422,0.7581,4476.7,4476.6,35.69147]
[1759490102628,0.7581,4476.7,4476.6,0.62347]
[1759490102822,0.7581,4476.7,4476.6,35.69047]
[1759490103422,0.7581,4476.7,4476.6,35.90887]
[1759490104621,0.7581,4476.7,4476.6,0.84187]
[1759490104824,0.7581,4476.7,4476.6,35.46877]
[1759490105019,0.7581,4476.7,4476.6,2.00749745]
[1759490105223,0.7581,4476.7,4476.6,0.225]
[1759490105815,0.5579,4476.5,4476.4,1.60572745]
[1759490106020,0.5199,4476.2,4476.1,0.40182]
[1759490106322,0.7403,4476.2,4476.1,0.225]
[1759490106720,0.7403,4476.2,4476.1,0.62681]
[1759490107825,0.7403,4476.2,4476.1,0.84121]
[1759490113528,0.7403,4476.2,4476.1,0.62681]
[1759490114230,0.7403,4476.2,4476.1,0.84121]
[1759490115229,0.7403,4476.2,4476.1,0.61621]
[1759490115432,0.7403,4476.2,4476.1,0.84121]
[1759490116426,0.7403,4476.2,4476.1,0.61621]
[1759490116630,0.7403,4476.2,4476.1,0.84121]
[1759490117129,0.7403,4476.2,4476.1,0.61621]
[1759490117341,0.7403,4476.2,4476.1,0.84121]
[1759490118134,0.7403,4476.2,4476.1,0.61621]
[1759490118433,0.7403,4476.2,4476.1,0.84121]
[1759490119236,0.7403,4476.2,4476.1,0.61621]
[1759490119437,0.7403,4476.2,4476.1,0.84121]
[1759490120938,0.7403,4476.2,4476.1,0.61621]
[1759490121235,0.7403,4476.2,4476.1,0.84121]
[1759490123139,0.7403,4476.2,4476.1,0.61621]
[1759490123340,0.7403,4476.2,4476.1,0.84121]
[1759490125945,0.7403,4476.2,4476.1,0.40181]
[1759490126140,0.7403,4476.2,4476.1,0.225]
[1759490126641,0.7403,4476.2,4476.1,0.62681]
[1759490132747,0.4314,4476.2,4476.1,0.225]
[1759490132947,0.83321,4476.2,4476.1,0.225]
[1759490133147,0.40181,4476.1,4476.0,1.60572745]
[1759490133354,1.26742,4476.0,4475.9,1.60572745]
[1759490133558,1.26742,4476.0,4475.9,1.83072745]
[1759490133958,0.8656,4476.0,4475.9,1.60572745]
[1759490134160,0.8656,4476.0,4475.9,1.83072745]
[1759490134553,0.8656,4476.0,4475.9,1.05413]
[1759490134754,0.6597,4476.0,4475.9,1.20273]